bitfinex/quotes_BTCUSD_20241004
["timestamp","ask_amount","ask_price","bid_price","bid_amount"]
[1728003371251,0.164968,60618.0,60613.0,0.164979]
[1728003371495,0.0966,60617.0,60613.0,0.164979]
[1728003371715,0.0966,60617.0,60614.0,0.164978]
[1728003372837,0.0966,60617.0,60613.0,0.329959]
[1728003373055,0.0966,60617.0,60612.0,0.329966]
[1728003373273,0.261571,60617.0,60613.0,0.164978]
[1728003373717,0.0966,60617.0,60615.0,0.164974]
[1728003374828,0.0966,60617.0,60613.0,0.164979]
[1728003375101,0.0966,60617.0,60612.0,0.329966]
[1728003375102,0.0966,60617.0,60614.0,0.164977]
[1728003377572,0.0966,60617.0,60612.0,0.329966]
[1728003377802,0.0966,60617.0,60615.0,0.164975]
[1728003379452,0.0966,60617.0,60616.0,0.164972]
[1728003382875,0.166589,60623.0,60616.0,0.164972]
[1728003382876,0.001634,60623.0,60622.0,0.164956]
[1728003383078,0.001634,60623.0,60622.0,0.32814271]
[1728003384213,0.001634,60623.0,60622.0,0.42814271]
[1728003385812,0.001634,60623.0,60622.0,0.43242465]
[1728003387318,0.00014546,60623.0,60622.0,0.43242465]
[1728003387736,0.00014546,60623.0,60622.0,0.62259823]
[1728003387937,0.00014546,60623.0,60622.0,0.62110615]
[1728003390699,0.00014546,60623.0,60622.0,0.62259823]
[1728003393620,0.00014546,60623.0,60622.0,0.62110615]
[1728003393835,0.00014546,60623.0,60622.0,0.43242465]
[1728003396627,0.00014546,60623.0,60622.0,0.50991673]
[1728003397524,0.00014546,60623.0,60622.0,0.53291673]
[1728003399327,0.00014546,60623.0,60622.0,0.50842465]
[1728003399535,0.00014546,60623.0,60622.0,0.50924165]
[1728003399963,0.00014546,60623.0,60622.0,0.58471524]
[1728003402079,0.00014546,60623.0,60622.0,0.51073373]
[1728003402506,0.00014546,60623.0,60622.0,0.56006039]
[1728003404759,0.00014546,60623.0,60622.0,0.51073373]
[1728003405667,0.00014546,60623.0,60622.0,0.58471524]
[1728003407285,0.00014546,60623.0,60622.0,0.51073373]
[1728003407519,0.00014546,60623.0,60622.0,0.50722316]
[1728003408195,0.00014546,60623.0,60622.0,0.48259803]
[1728003408433,0.00014546,60623.0,60622.0,0.43324165]
[1728003408678,0.00014546,60623.0,60622.0,0.50722316]
[1728003409636,0.00014546,60623.0,60622.0,0.43324165]
[1728003411301,0.00014546,60623.0,60622.0,0.48259229]
[1728003411538,0.00014546,60623.0,60622.0,0.43324165]
[1728003413249,0.00014546,60623.0,60622.0,0.48259084]
[1728003414724,0.00014546,60623.0,60622.0,0.48259812]
[1728003415142,0.00014546,60623.0,60622.0,0.43324165]
[1728003415568,0.00014546,60623.0,60622.0,0.48260465]
[1728003415984,0.00014546,60623.0,60622.0,0.50875751]
[1728003416201,0.00014546,60623.0,60622.0,0.43473373]
[1728003416411,0.00014546,60623.0,60622.0,0.50875751]
[1728003417019,0.00014546,60623.0,60622.0,0.43473373]
[1728003417431,0.00014546,60623.0,60622.0,0.50875751]
[1728003417645,0.00014546,60623.0,60622.0,0.50726543]
[1728003417820,0.00014546,60623.0,60622.0,0.48262347]
[1728003418227,0.00014546,60623.0,60622.0,0.43324165]
[1728003419920,0.16694546,60623.0,60622.0,0.33324165]
[1728003420377,0.16694546,60623.0,60622.0,0.00509894]
[1728003420616,0.16694546,60623.0,60622.0,0.33324165]
[1728003420820,0.00014546,60623.0,60622.0,0.52192315]
[1728003421045,0.00014546,60623.0,60622.0,0.62192315]
[1728003422023,0.00014546,60623.0,60622.0,0.67136274]
[1728003422263,0.00014546,60623.0,60622.0,0.67136285]
[1728003422485,0.00014546,60623.0,60622.0,0.69608271]
[1728003424018,0.00014546,60623.0,60622.0,0.87008271]
[1728003424233,0.00014546,60623.0,60622.0,0.69757479]
[1728003425730,0.00014546,60623.0,60622.0,0.62341523]
[1728003425941,0.00014546,60623.0,60622.0,0.69761212]
[1728003426361,0.00014546,60623.0,60622.0,0.62341523]
[1728003427734,0.00014546,60623.0,60622.0,0.72234693]
[1728003428168,0.00014546,60623.0,60622.0,0.62341523]
[1728003429462,0.00014546,60623.0,60622.0,0.43324165]
[1728003429660,0.00014546,60623.0,60622.0,0.55698783]
[1728003430265,0.00014546,60623.0,60622.0,0.43324165]
[1728003430700,0.00014546,60623.0,60622.0,0.5322431]
[1728003431115,0.07924546,60623.0,60622.0,0.5322431]
[1728003432420,0.00014546,60623.0,60622.0,0.5322431]
[1728003432645,0.00014546,60623.0,60622.0,0.43324165]
[1728003433436,0.00014546,60623.0,60622.0,0.55698783]
[1728003433646,0.00014546,60623.0,60622.0,0.53225463]
[1728003438593,0.00014546,60623.0,60622.0,0.43473373]
[1728003439874,0.00014546,60623.0,60622.0,0.43324165]
[1728003441448,0.07924546,60623.0,60622.0,0.43324165]
[1728003441683,0.07924546,60623.0,60622.0,0.53226591]
[1728003441920,0.17164546,60623.0,60622.0,0.53226591]
[1728003442639,0.17164546,60623.0,60622.0,0.43324165]
[1728003442851,0.17164546,60623.0,60622.0,0.53226591]
[1728003443289,0.17164546,60623.0,60622.0,0.43324165]
[1728003443745,0.17164546,60623.0,60622.0,0.34431935]
[1728003443977,0.17164546,60623.0,60622.0,0.27005494]
[1728003444458,0.17164546,60623.0,60622.0,0.31956316]
[1728003445814,0.17164546,60623.0,60622.0,0.27005494]
[1728003449551,0.17164546,60623.0,60622.0,0.31956316]
[1728003449793,0.17164546,60623.0,60622.0,0.27005494]
[1728003455102,0.00014546,60623.0,60622.0,0.50750606]
[1728003455367,0.00014546,60623.0,60622.0,0.55846303]
[1728003455606,0.00014546,60623.0,60622.0,0.43473373]
[1728003456471,0.00014546,60623.0,60622.0,0.43324165]
[1728003456690,0.00014546,60623.0,60622.0,0.45076773]
[1728003457354,0.00014546,60623.0,60622.0,0.45225981]
[1728003457579,0.00014546,60623.0,60622.0,0.43473373]
[1728003457819,0.00014546,60623.0,60622.0,0.45227381]
[1728003458098,0.00014546,60623.0,60622.0,0.50932142]
[1728003458330,0.00014546,60623.0,60622.0,0.59002142]
[1728003458571,0.100534,60642.0,60641.0,0.164904]
[1728003458824,0.100534,60642.0,60641.0,0.62205579]
[1728003458825,0.001634,60642.0,60641.0,0.62205579]
[1728003459071,0.001634,60642.0,60641.0,0.56927204]
[1728003459290,0.001634,60642.0,60641.0,0.69298742]
[1728003459553,0.001634,60642.0,60641.0,0.54454994]
[1728003459801,0.001634,60642.0,60641.0,0.51982195]
[1728003460249,0.001634,60642.0,60641.0,0.44563079]
[1728003460460,0.001634,60642.0,60641.0,0.47753845]
[1728003461176,0.001634,60642.0,60641.0,0.48187575]
[1728003461418,0.001634,60642.0,60641.0,0.43242801]
[1728003462363,0.001634,60642.0,60641.0,0.48184829]
[1728003463489,0.001634,60642.0,60641.0,0.43242801]
[1728003468970,0.097834,60642.0,60641.0,0.43242801]
[1728003472528,0.181034,60642.0,60641.0,0.164904]
[1728003478060,0.181034,60642.0,60640.0,0.164906]
[1728003478506,0.181034,60642.0,60639.0,0.329819]
[1728003478746,0.181034,60642.0,60641.0,0.164904]
[1728003481709,0.181034,60642.0,60632.0,0.429854]
[1728003481710,0.005,60637.0,60633.0,0.32985]
[1728003481948,0.005,60637.0,60635.0,0.164921]
[1728003481949,0.0962,60636.0,60635.0,0.164921]
[1728003484045,0.0966,60633.0,60627.0,0.00426368]
[1728003484261,0.0966,60633.0,60632.0,0.164929]
[1728003485209,0.0966,60633.0,60622.0,0.000817]
[1728003485210,0.09777689,60629.0,60622.0,0.000817]
[1728003485469,0.46398043,60624.0,60623.0,0.24825397]
[1728003485701,0.34083581,60624.0,60623.0,0.24825397]
[1728003485960,0.34083581,60624.0,60623.0,0.000817]
[1728003486431,0.34583581,60624.0,60623.0,0.000817]
[1728003486874,0.34532789,60624.0,60623.0,0.000817]
[1728003487384,0.34583581,60624.0,60623.0,0.000817]
[1728003487597,0.37169567,60624.0,60623.0,0.000817]
[1728003489004,0.37169567,60624.0,60622.0,0.000817]
[1728003489005,0.17470792,60623.0,60622.0,0.000817]
[1728003489260,0.34583781,60623.0,60622.0,0.000817]
[1728003493582,0.50902452,60623.0,60622.0,0.000817]
[1728003495719,0.53488568,60623.0,60622.0,0.000817]
[1728003495954,0.69807239,60623.0,60622.0,0.000817]
[1728003496466,0.53488568,60623.0,60622.0,0.000817]
[1728003496692,0.50902452,60623.0,60622.0,0.000817]
[1728003500028,0.53488572,60623.0,60622.0,0.000817]
[1728003503926,0.53488572,60623.0,60622.0,0.000117]
[1728003504203,0.53488572,60623.0,60613.0,0.24735397]
[1728003504204,0.261578,60614.0,60613.0,0.24735397]
[1728003504425,0.26208592,60614.0,60613.0,0.24725397]
[1728003504651,0.00050792,60610.0,60608.0,0.000817]
[1728003504867,0.00050792,60610.0,60608.0,0.000117]
[1728003505089,0.00050792,60610.0,60608.0,1.7e-05]
[1728003505303,0.00050792,60610.0,60607.0,0.264913]
[1728003505519,0.00050792,60610.0,60607.0,0.264813]
[1728003505759,0.00050792,60610.0,60607.0,0.264213]
[1728003505975,0.00050792,60610.0,60603.0,0.66439727]
[1728003505976,0.16549892,60610.0,60603.0,0.00426927]
[1728003506194,0.16549892,60610.0,60603.0,0.32819271]
[1728003506195,0.164995,60608.0,60603.0,0.32819271]
[1728003506419,0.164995,60608.0,60604.0,0.164903]
[1728003506647,0.164995,60608.0,60604.0,0.164203]
[1728003506862,0.164995,60608.0,60604.0,0.164103]
[1728003507073,0.00050792,60608.0,60605.0,0.164902]
[1728003507289,0.00050792,60608.0,60605.0,0.164702]
[1728003507517,0.00050792,60608.0,60605.0,0.164302]
[1728003507750,0.00050792,60608.0,60602.0,0.000817]
[1728003507751,0.22034728,60606.0,60602.0,0.000717]
[1728003507983,0.165007,60604.0,60602.0,0.000517]
[1728003508218,0.165008,60603.0,60602.0,0.000317]
[1728003508650,0.00050792,60604.0,60602.0,0.000317]
[1728003508870,0.16551392,60604.0,60602.0,0.000317]
[1728003509098,0.07877689,60605.0,60603.0,0.165008]
[1728003509340,0.07877689,60605.0,60602.0,0.165326]
[1728003509341,0.00117689,60605.0,60602.0,0.165326]
[1728003509782,0.16618089,60605.0,60602.0,0.000317]
[1728003510436,0.00117689,60605.0,60602.0,0.000317]
[1728003510874,0.16618089,60605.0,60602.0,0.000317]
[1728003511059,0.00117689,60605.0,60602.0,0.000317]
[1728003511274,0.00117689,60605.0,60602.0,0.165327]
[1728003512003,0.0966,60606.0,60602.0,0.000317]
[1728003512224,0.0966,60606.0,60605.0,0.165002]
[1728003513561,0.17049992,60609.0,60608.0,0.164994]
[1728003513562,0.005,60609.0,60608.0,0.164994]
[1728003513778,0.00117689,60615.0,60614.0,0.164978]
[1728003513779,0.005,60615.0,60614.0,0.164978]
[1728003514017,0.00117689,60618.0,60613.0,0.329961]
[1728003514018,0.005,60616.0,60613.0,0.329961]
[1728003514260,0.005,60616.0,60615.0,0.164975]
[1728003516373,0.005,60618.0,60617.0,0.16497]
[1728003518217,0.0917,60619.0,60614.0,0.66407135]
[1728003518218,0.0967,60619.0,60618.0,0.164967]
[1728003525720,0.0917,60619.0,60618.0,0.164967]
[1728003526152,0.00617689,60620.0,60619.0,0.164964]
[1728003529520,0.00781289,60620.0,60619.0,0.164964]
[1728003534204,0.006636,60620.0,60619.0,0.164964]
[1728003535107,0.001636,60620.0,60619.0,0.51666818]
[1728003535300,0.001636,60620.0,60619.0,0.51816026]
[1728003537668,0.001636,60620.0,60619.0,0.45328884]
[1728003538902,0.001636,60620.0,60619.0,0.45179676]
[1728003540170,0.001636,60620.0,60619.0,0.45328884]
[1728003542867,0.001636,60620.0,60619.0,0.55328884]
[1728003543297,0.001636,60620.0,60619.0,0.55179676]
[1728003549057,0.001636,60620.0,60619.0,0.55328884]
[1728003549685,0.001636,60620.0,60619.0,0.55179676]
[1728003551697,0.001636,60620.0,60619.0,0.42815071]
[1728003555377,0.001636,60620.0,60619.0,0.42964279]
[1728003557465,0.001636,60620.0,60619.0,0.50624279]
[1728003558735,0.001636,60620.0,60619.0,0.50475071]
[1728003559210,0.001636,60620.0,60619.0,0.55415769]
[1728003559650,0.001636,60620.0,60619.0,0.55564977]
[1728003560109,0.001636,60620.0,60619.0,0.47904977]
[1728003561792,0.001636,60620.0,60619.0,0.47755769]
[1728003562219,0.001636,60620.0,60619.0,0.42815071]
[1728003562435,0.001636,60620.0,60619.0,0.47760903]
[1728003562925,0.001636,60620.0,60619.0,0.47760909]
[1728003563138,0.001636,60620.0,60619.0,0.47910117]
[1728003563308,0.001636,60620.0,60619.0,0.42964279]
[1728003568369,0.001636,60620.0,60619.0,0.50383037]
[1728003570839,0.001636,60620.0,60619.0,0.50233829]
[1728003573043,0.092936,60620.0,60619.0,0.42815071]
[1728003573469,0.092936,60620.0,60619.0,0.47763769]
[1728003573719,0.092936,60620.0,60619.0,0.33915158]
[1728003573953,0.092936,60620.0,60616.0,0.329943]
[1728003574211,0.092936,60620.0,60619.0,0.164964]
[1728003575780,0.092936,60620.0,60619.0,0.32815071]
[1728003588630,0.092936,60620.0,60619.0,0.164964]
[1728003600806,0.092936,60620.0,60619.0,0.32815071]
[1728003601029,0.001636,60620.0,60619.0,0.4452787]
[1728003601288,0.001636,60620.0,60619.0,0.60163742]
[1728003601486,0.001636,60620.0,60619.0,0.72528347]
[1728003601717,0.001636,60620.0,60619.0,0.8738018]
[1728003601949,0.001636,60620.0,60619.0,0.87519984]
[1728003602178,0.001636,60620.0,60619.0,0.72677555]
[1728003602425,0.001636,60620.0,60619.0,0.66971683]
[1728003602665,0.001636,60620.0,60619.0,0.72673773]
[1728003603125,0.001636,60620.0,60619.0,0.65258884]
[1728003603338,0.001636,60620.0,60619.0,0.42964279]
[1728003603567,0.001636,60620.0,60619.0,0.55179676]
[1728003604088,0.001636,60620.0,60619.0,0.65109676]
[1728003604513,0.001636,60620.0,60619.0,0.62809676]
[1728003604724,0.001636,60620.0,60619.0,0.55179676]
[1728003605186,0.001636,60620.0,60619.0,0.56883782]
[1728003605417,0.001636,60620.0,60619.0,0.69395466]
[1728003606059,0.001636,60620.0,60619.0,0.5703299]
[1728003606299,0.001636,60620.0,60619.0,0.65218883]
[1728003606532,0.001636,60620.0,60619.0,0.66921347]
[1728003606751,0.001636,60620.0,60619.0,0.69393824]
[1728003607652,0.001636,60620.0,60619.0,0.57031348]
[1728003607888,0.001636,60620.0,60619.0,0.69392153]
[1728003608116,0.001636,60620.0,60619.0,0.57031348]
[1728003608967,0.001636,60620.0,60619.0,0.69391421]
[1728003609199,0.001636,60620.0,60619.0,0.57031348]
[1728003609470,0.001636,60620.0,60619.0,0.59331348]
[1728003609898,0.001636,60620.0,60619.0,0.67101348]
[1728003610596,0.001636,60620.0,60619.0,0.6677214]
[1728003611057,0.001636,60620.0,60619.0,0.65218884]
[1728003611285,0.001636,60620.0,60619.0,0.57628884]
[1728003612247,0.001634,60623.0,60619.0,0.57628884]
[1728003612248,0.001634,60623.0,60622.0,0.28944808]
[1728003612467,0.001634,60623.0,60622.0,0.6554793]
[1728003612716,0.001634,60623.0,60622.0,0.65218084]
[1728003613203,0.001634,60623.0,60622.0,0.66920622]
[1728003613888,2.0,60630.0,60629.0,0.26642908]
[1728003614136,1.94737,60630.0,60629.0,0.53181409]
[1728003614379,1.934085,60630.0,60629.0,0.5323389]
[1728003614617,1.934085,60630.0,60629.0,0.52851579]
[1728003614851,1.934085,60630.0,60629.0,0.55305981]
[1728003615095,1.934085,60630.0,60629.0,0.50219406]
[1728003615354,1.934085,60630.0,60629.0,0.42812371]
[1728003615584,1.934085,60630.0,60629.0,0.43238866]
[1728003616777,2.029585,60630.0,60629.0,0.26920195]
[1728003617675,2.03009292,60630.0,60629.0,0.26920195]
[1728003617904,2.029585,60630.0,60629.0,0.26920195]
[1728003623634,2.029585,60630.0,60629.0,0.1]
[1728003623842,2.03009292,60630.0,60627.0,0.10436371]
[1728003624066,2.03009292,60630.0,60629.0,0.264937]
[1728003624067,2.029585,60630.0,60629.0,0.264937]
[1728003624516,2.029585,60630.0,60629.0,0.100817]
[1728003624757,2.28542989,60630.0,60629.0,0.000817]
[1728003624992,2.12100381,60630.0,60629.0,0.000817]
[1728003625247,2.28593781,60630.0,60629.0,0.000817]
[1728003626173,0.34853581,60624.0,60623.0,0.24743697]
[1728003626387,0.35353581,60624.0,60623.0,0.24743697]
[1728003626680,0.51830532,60626.0,60614.0,1.04439197]
[1728003626681,0.00050792,60617.0,60614.0,1.04439197]
[1728003626888,0.00050792,60617.0,60616.0,0.164972]
[1728003627531,0.00050792,60617.0,60616.0,0.264972]
[1728003627745,0.00050792,60617.0,60616.0,0.164972]
[1728003627746,0.0988,60617.0,60616.0,0.164972]
[1728003644739,0.0988,60617.0,60615.0,0.000817]
[1728003644983,0.0988,60617.0,60616.0,0.164972]
[1728003645204,0.0988,60617.0,60615.0,0.000817]
[1728003645205,0.26164889,60616.0,60615.0,0.000817]
[1728003645443,0.34224889,60616.0,60615.0,0.000817]
[1728003645676,0.34275681,60616.0,60615.0,0.000817]
[1728003652493,0.34275681,60616.0,60615.0,0.165792]
[1728003652494,0.0955,60616.0,60615.0,0.165792]
[1728003653346,0.005,60621.0,60615.0,0.000817]
[1728003653598,0.001634,60629.0,60623.0,0.164953]
[1728003653599,0.0929,60624.0,60623.0,0.164953]
[1728003653762,0.001634,60629.0,60628.0,0.16494]
[1728003653763,0.24907097,60629.0,60628.0,0.16494]
[1728003654010,0.24907097,60629.0,60628.0,0.42812671]
[1728003654219,0.001634,60629.0,60628.0,0.42812671]
[1728003655272,0.001634,60629.0,60628.0,0.16494]
[1728003655639,0.001634,60629.0,60628.0,0.16918469]
[1728003657520,0.00281089,60629.0,60628.0,0.16494]
[1728003657730,0.00281089,60629.0,60625.0,0.329893]
[1728003657731,0.00117689,60628.0,60627.0,0.164941]
[1728003660309,0.00168481,60628.0,60627.0,0.164941]
[1728003660524,0.00117689,60628.0,60627.0,0.164941]
[1728003665838,0.10017689,60628.0,60627.0,0.164941]
[1728003666760,0.10068481,60628.0,60627.0,0.164941]
[1728003667021,0.18358481,60622.0,60621.0,0.494873]
[1728003667242,0.1819,60622.0,60621.0,0.494873]
[1728003667465,0.00117689,60622.0,60621.0,0.494873]
[1728003669267,0.00117689,60622.0,60621.0,0.49923183]
[1728003672271,0.00117689,60622.0,60621.0,0.50004883]
[1728003674792,0.10017689,60622.0,60621.0,0.49569]
[1728003675028,0.18307689,60622.0,60621.0,0.49569]
[1728003675258,0.18307689,60622.0,60621.0,0.165776]
[1728003676081,0.18358481,60622.0,60621.0,0.165776]
[1728003676522,0.18358481,60622.0,60621.0,0.166776]
[1728003676523,0.19458481,60622.0,60621.0,0.166776]
[1728003676749,0.19407689,60622.0,60621.0,0.166776]
[1728003676978,0.18307689,60622.0,60621.0,0.165776]
[1728003677200,0.18407689,60622.0,60621.0,0.176776]
[1728003678502,0.18507689,60622.0,60621.0,0.190776]
[1728003682618,0.18558481,60622.0,60621.0,0.190776]
[1728003682837,0.18558481,60622.0,60621.0,0.025817]
[1728003683052,0.18558481,60622.0,60621.0,0.190776]
[1728003683529,0.18558481,60622.0,60621.0,0.025817]
[1728003683755,0.18558481,60622.0,60621.0,0.190776]
[1728003683966,0.18507689,60622.0,60621.0,0.190776]
[1728003684195,0.18558481,60622.0,60621.0,0.190776]
[1728003684404,0.18507689,60622.0,60621.0,0.190776]
[1728003684844,0.18558481,60622.0,60621.0,0.190776]
[1728003685067,0.18507689,60622.0,60621.0,0.190776]
[1728003686483,0.18558481,60622.0,60621.0,0.190776]
[1728003688181,0.18507689,60622.0,60621.0,0.190776]
[1728003688422,0.18558481,60622.0,60621.0,0.190776]
[1728003689857,0.18507689,60622.0,60621.0,0.190776]
[1728003690566,0.18558481,60622.0,60621.0,0.190776]
[1728003691697,0.18558481,60622.0,60621.0,0.025817]
[1728003691921,0.53895013,60622.0,60621.0,0.025817]
[1728003692844,0.53895013,60622.0,60621.0,0.000817]
[1728003692845,0.53795013,60622.0,60621.0,0.000817]
[1728003693068,0.53795013,60622.0,60621.0,0.008817]
[1728003693300,0.53795013,60622.0,60621.0,0.013817]
[1728003693552,0.85390025,60622.0,60621.0,0.013817]
[1728003693785,0.70113684,60622.0,60621.0,0.013817]
[1728003694239,0.70013684,60622.0,60621.0,0.005817]
[1728003694756,0.70113684,60622.0,60621.0,0.013817]
[1728003696627,0.70113684,60622.0,60615.0,0.000817]
[1728003696628,0.34015681,60616.0,60615.0,0.000817]
[1728003696868,0.66156101,60616.0,60615.0,0.000817]
[1728003697113,0.66656101,60616.0,60615.0,0.000817]
[1728003697828,0.83074772,60616.0,60615.0,0.006817]
[1728003698299,0.82974772,60616.0,60615.0,0.000817]
[1728003698702,0.34515681,60616.0,60615.0,0.000817]
[1728003698705,0.17967689,60616.0,60615.0,0.168792]
[1728003699084,0.17967689,60616.0,60615.0,0.171792]
[1728003699287,0.17967689,60616.0,60615.0,0.168792]
[1728003699535,0.18018481,60616.0,60615.0,0.006817]
[1728003699936,0.18018481,60616.0,60615.0,0.003817]
[1728003700132,0.18118481,60616.0,60615.0,0.003817]
[1728003700556,0.43419247,60616.0,60615.0,0.003817]
[1728003700764,0.26922047,60616.0,60615.0,0.003817]
[1728003700986,0.26922047,60616.0,60615.0,0.000817]
[1728003701451,0.27022047,60616.0,60615.0,0.005817]
[1728003701874,0.26922047,60616.0,60615.0,0.000817]
[1728003702345,0.27022047,60616.0,60615.0,0.014817]
[1728003702547,0.62460179,60616.0,60615.0,0.014817]
[1728003703726,0.53556613,60616.0,60615.0,0.014817]
[1728003703955,0.34715681,60616.0,60615.0,0.014817]
[1728003705131,0.53556613,60616.0,60615.0,0.014817]
[1728003709494,0.18218481,60616.0,60615.0,0.014817]
[1728003709721,0.10488481,60616.0,60615.0,0.179792]
[1728003710013,0.10488481,60616.0,60615.0,0.014817]
[1728003713635,0.10437689,60616.0,60615.0,0.014817]
[1728003714573,0.10488481,60616.0,60615.0,0.014817]
[1728003715014,0.54735119,60616.0,60615.0,0.014817]
[1728003715233,0.53506613,60616.0,60615.0,0.014817]
[1728003721446,0.34665681,60616.0,60615.0,0.014817]
[1728003721912,0.18117689,60616.0,60615.0,0.014817]
[1728003723506,0.18168481,60616.0,60615.0,0.014817]
[1728003724530,0.18117689,60616.0,60615.0,0.179792]
[1728003724768,0.10437689,60616.0,60615.0,0.014817]
[1728003725235,0.10488481,60616.0,60615.0,0.014817]
[1728003725502,0.10437689,60616.0,60615.0,0.014817]
[1728003725724,0.10488481,60616.0,60615.0,0.014817]
[1728003727503,0.10437689,60616.0,60615.0,0.014817]
[1728003727727,0.00817689,60616.0,60615.0,0.179792]
[1728003727950,0.00317689,60616.0,60615.0,0.179792]
[1728003728432,0.002,60616.0,60615.0,0.54281623]
[1728003728645,0.002,60616.0,60615.0,0.71295612]
[1728003728890,0.002,60616.0,60615.0,0.76240545]
[1728003729373,0.002,60616.0,60615.0,0.66350679]
[1728003729594,0.001,60616.0,60615.0,0.7816222]
[1728003730050,0.001634,60621.0,60620.0,0.00149208]
[1728003730282,0.001634,60621.0,60620.0,0.62798623]
[1728003731167,0.001634,60621.0,60620.0,0.62947831]
[1728003731383,0.001634,60621.0,60620.0,0.64347831]
[1728003731606,0.003634,60621.0,60620.0,0.53374079]
[1728003735230,0.003634,60621.0,60620.0,0.53224871]
[1728003735458,0.003634,60621.0,60620.0,0.53374079]
[1728003736324,0.003634,60621.0,60620.0,0.53224871]
[1728003736484,0.003634,60621.0,60620.0,0.45614871]
[1728003736691,0.003634,60621.0,60620.0,0.292962]
[1728003737132,0.001634,60621.0,60620.0,0.264962]
[1728003737530,0.001634,60621.0,60620.0,0.192962]
[1728003737531,0.003634,60621.0,60620.0,0.192962]
[1728003737874,0.003634,60621.0,60620.0,0.178962]
[1728003737875,0.002634,60621.0,60620.0,0.178962]
[1728003738298,0.002634,60621.0,60620.0,0.164962]
[1728003738705,0.003634,60621.0,60620.0,0.178962]
[1728003739689,0.003634,60621.0,60620.0,0.192962]
[1728003739892,0.002634,60621.0,60620.0,0.34214871]
[1728003740095,0.002634,60621.0,60620.0,0.51824871]
[1728003740510,0.002634,60621.0,60620.0,0.72215483]
[1728003740702,0.001634,60621.0,60620.0,0.70815483]
[1728003740919,0.001634,60621.0,60620.0,0.72215483]
[1728003741156,0.001634,60621.0,60620.0,0.70815483]
[1728003741591,0.001634,60621.0,60620.0,0.72215483]
[1728003741796,0.001634,60621.0,60620.0,0.73855483]
[1728003742008,0.001634,60621.0,60620.0,0.72537183]
[1728003742845,0.001634,60621.0,60620.0,0.71137183]
[1728003743248,0.001634,60621.0,60620.0,0.73937183]
[1728003743764,0.001634,60629.0,60628.0,0.53094612]
[1728003744010,1.935719,60630.0,60629.0,0.16642908]
[1728003744011,1.918339,60630.0,60629.0,0.16642908]
[1728003744225,1.918339,60630.0,60629.0,0.60651356]
[1728003744226,1.88648462,60630.0,60629.0,0.60651356]
[1728003744451,1.88648462,60630.0,60629.0,0.5325389]
[1728003745357,1.88648462,60630.0,60629.0,0.60643379]
[1728003745580,1.88648462,60630.0,60629.0,0.5325389]
[1728003746023,1.8565559,60630.0,60629.0,0.58179968]
[1728003746490,1.8565559,60630.0,60629.0,0.5465389]
[1728003747477,1.8565559,60630.0,60629.0,0.55070884]
[1728003747693,1.8565559,60630.0,60629.0,0.56470884]
[1728003748162,1.8565559,60630.0,60629.0,0.55070884]
[1728003749356,1.8565559,60630.0,60629.0,0.53670884]
[1728003749568,1.8565559,60630.0,60629.0,0.55070884]
[1728003750013,1.8565559,60630.0,60629.0,0.56470884]
[1728003750241,1.8565559,60630.0,60629.0,0.55070884]
[1728003750963,1.8565559,60630.0,60629.0,0.44629365]
[1728003751175,1.84564935,60630.0,60629.0,0.46029365]
[1728003752304,1.84564935,60630.0,60629.0,0.44778573]
[1728003752725,1.84564935,60630.0,60629.0,0.46178573]
[1728003752942,1.84564935,60630.0,60629.0,0.44778573]
[1728003753414,1.84564935,60630.0,60629.0,0.46178573]
[1728003755278,1.84564935,60630.0,60629.0,0.7092227]
[1728003755499,1.84564935,60630.0,60629.0,0.46178573]
[1728003755713,1.84564935,60630.0,60629.0,0.54068573]
[1728003756168,1.84564935,60630.0,60629.0,0.52668573]
[1728003756667,1.84564935,60630.0,60629.0,0.54968573]
[1728003756668,1.80367261,60630.0,60629.0,0.54968573]
[1728003756887,1.80367261,60630.0,60629.0,0.56368573]
[1728003757776,1.74509561,60630.0,60629.0,0.56750884]
[1728003758000,1.52879061,60630.0,60629.0,0.56750884]
[1728003758234,0.86479943,60630.0,60629.0,0.55850884]
[1728003758467,0.83043427,60630.0,60629.0,0.54450884]
[1728003758695,0.55758678,60630.0,60629.0,0.64623306]
[1728003758948,0.54065607,60630.0,60629.0,0.57250884]
[1728003759172,0.54065607,60630.0,60629.0,0.55850884]
[1728003759173,0.29453107,60630.0,60629.0,0.55850884]
[1728003759389,0.001634,60643.0,60642.0,0.36829408]
[1728003759606,0.001634,60643.0,60642.0,0.71989483]
[1728003760336,0.0947,60660.0,60642.0,0.71989483]
[1728003760337,0.0947,60660.0,60659.0,0.164855]
[1728003760566,0.0947,60660.0,60659.0,0.51645575]
[1728003760814,0.0947,60660.0,60659.0,0.32804171]
[1728003762142,0.096338,60666.0,60665.0,0.164839]
[1728003762401,0.096338,60666.0,60665.0,0.32802571]
[1728003763557,0.101338,60666.0,60665.0,0.33602571]
[1728003763802,0.096338,60666.0,60665.0,0.33602571]
[1728003764056,0.101338,60666.0,60665.0,0.33602571]
[1728003764306,0.101338,60666.0,60665.0,0.34202571]
[1728003764744,0.096338,60666.0,60665.0,0.34202571]
[1728003764998,0.096338,60666.0,60665.0,0.178839]
[1728003765229,0.10251489,60666.0,60665.0,0.014]
[1728003765445,0.10251489,60666.0,60651.0,0.329755]
[1728003765446,0.00117689,60658.0,60657.0,0.26486]
[1728003765673,0.00117689,60660.0,60657.0,0.429718]
[1728003765900,0.00117689,60660.0,60659.0,0.164854]
[1728003766111,0.1729,60661.0,60660.0,0.164853]
[1728003766112,0.17407689,60661.0,60660.0,0.164853]
[1728003766366,0.00117689,60660.0,60658.0,0.494573]
[1728003766554,0.00117689,60660.0,60659.0,0.164855]
[1728003767450,0.1729,60661.0,60657.0,0.1]
[1728003767667,0.1729,60661.0,60660.0,0.164853]
[1728003768821,0.1729,60661.0,60660.0,0.32803971]
[1728003769041,0.0947,60661.0,60660.0,0.32803971]
[1728003769524,0.001638,60666.0,60665.0,0.164839]
[1728003769744,0.001638,60666.0,60665.0,0.32802571]
[1728003770861,0.001638,60666.0,60665.0,0.33302571]
[1728003772465,0.002638,60666.0,60665.0,0.34102571]
[1728003774714,0.002638,60666.0,60665.0,0.44102571]
[1728003775942,0.001638,60666.0,60665.0,0.43302571]
[1728003776161,0.001638,60666.0,60665.0,0.44002571]
[1728003776616,0.001638,60666.0,60665.0,0.45102571]
[1728003776856,0.001638,60666.0,60665.0,0.42951779]